{"text_format":"1","workbook":"xlsx","n_sheets":1,"sheets":["Index"],"not_rendered":{"charts":0,"images":0,"macros":1,"external_links":0,"defined_names":0,"comments":0,"pivot_tables":0},"unopened":[],"bounds":{"document_bytes":16777216,"sheet_cells":100000,"rows_first":2000,"rows_last":500,"rows_between":2000,"halvings":0,"cell_chars":16384,"cell_head_chars":4096},"cells_cut":0,"cells_raw":0,"read":"whole","date_system":"1900"}

{"sheet":"Index","index":0,"n_rows":24,"n_cols":6,"rows_kept":24,"cut":false,"hidden":false,"merged":[]}
["Number","Essay's Title","Magazine Reference","Folder","File Name","Essay [Adobe Acrobat]"]
[1,null,null,"C:\\Essays\\Geo_Dating\\Dating\\False\\",{"$f":"(\"False_0\"& A2)","v":"False_01"},{"$f":"(D2 & E2 & \".pdf\")","v":"C:\\Essays\\Geo_Dating\\Dating\\False\\False_01.pdf"}]
[2,null,null,"C:\\Essays\\Geo_Dating\\Dating\\False\\",{"$f":"(\"False_0\"& A3)","v":"False_02"},{"$f":"(D3 & E3 & \".pdf\")","v":"C:\\Essays\\Geo_Dating\\Dating\\False\\False_02.pdf"}]
[3,null,null,"C:\\Essays\\Geo_Dating\\Dating\\False\\","False_03","C:\\Essays\\Geo_Dating\\Dating\\False\\False_03.pdf"]
[4,null,null,"C:\\Essays\\Geo_Dating\\Dating\\False\\","False_04","C:\\Essays\\Geo_Dating\\Dating\\False\\False_04.pdf"]
[5,null,null,"C:\\Essays\\Geo_Dating\\Dating\\False\\","False_05","C:\\Essays\\Geo_Dating\\Dating\\False\\False_05.pdf"]
[6,null,null,"C:\\Essays\\Geo_Dating\\Dating\\False\\","False_06","C:\\Essays\\Geo_Dating\\Dating\\False\\False_06.pdf"]
[7,null,null,"C:\\Essays\\Geo_Dating\\Dating\\False\\","False_07","C:\\Essays\\Geo_Dating\\Dating\\False\\False_07.pdf"]
[8,null,null,"C:\\Essays\\Geo_Dating\\Dating\\False\\","False_08","C:\\Essays\\Geo_Dating\\Dating\\False\\False_08.pdf"]
[9,null,null,"C:\\Essays\\Geo_Dating\\Dating\\False\\","False_09","C:\\Essays\\Geo_Dating\\Dating\\False\\False_09.pdf"]
[10,null,null,"C:\\Essays\\Geo_Dating\\Dating\\False\\",{"$f":"(\"False_\"& A11)","v":"False_10"},"C:\\Essays\\Geo_Dating\\Dating\\False\\False_10.pdf"]
[11,null,null,"C:\\Essays\\Geo_Dating\\Dating\\False\\",{"$f":"(\"False_\"& A12)","v":"False_11"},"C:\\Essays\\Geo_Dating\\Dating\\False\\False_11.pdf"]
[12,null,null,"C:\\Essays\\Geo_Dating\\Dating\\False\\","False_12","C:\\Essays\\Geo_Dating\\Dating\\False\\False_12.pdf"]
[13,null,null,"C:\\Essays\\Geo_Dating\\Dating\\False\\","False_13","C:\\Essays\\Geo_Dating\\Dating\\False\\False_13.pdf"]
[14,null,null,"C:\\Essays\\Geo_Dating\\Dating\\False\\","False_14","C:\\Essays\\Geo_Dating\\Dating\\False\\False_14.pdf"]
[15,null,null,"C:\\Essays\\Geo_Dating\\Dating\\False\\","False_15","C:\\Essays\\Geo_Dating\\Dating\\False\\False_15.pdf"]
[16,null,null,"C:\\Essays\\Geo_Dating\\Dating\\False\\","False_16","C:\\Essays\\Geo_Dating\\Dating\\False\\False_16.pdf"]
[17,null,null,"C:\\Essays\\Geo_Dating\\Dating\\False\\","False_17","C:\\Essays\\Geo_Dating\\Dating\\False\\False_17.pdf"]
[18,null,null,"C:\\Essays\\Geo_Dating\\Dating\\False\\","False_18","C:\\Essays\\Geo_Dating\\Dating\\False\\False_18.pdf"]
[19,null,null,"C:\\Essays\\Geo_Dating\\Dating\\False\\","False_19","C:\\Essays\\Geo_Dating\\Dating\\False\\False_19.pdf"]
[20,null,null,"C:\\Essays\\Geo_Dating\\Dating\\False\\","False_20","C:\\Essays\\Geo_Dating\\Dating\\False\\False_20.pdf"]
[21,null,null,"C:\\Essays\\Geo_Dating\\Dating\\False\\","False_21","C:\\Essays\\Geo_Dating\\Dating\\False\\False_21.pdf"]
[22,null,null,"C:\\Essays\\Geo_Dating\\Dating\\False\\","False_22","C:\\Essays\\Geo_Dating\\Dating\\False\\False_22.pdf"]
[23,null,null,"C:\\Essays\\Geo_Dating\\Dating\\False\\","False_23","C:\\Essays\\Geo_Dating\\Dating\\False\\False_23.pdf"]